fUST/lending_fUST_20250302
["ID","MTS","AMOUNT","RATE_DAILY","PERIOD"]
[354999587,1740859844425,-577.52,0.00024657,2]
[354999588,1740859844434,-500.0,0.00024657,2]
[354999589,1740859844444,-500.0,0.00024657,2]
[354999590,1740859844455,-500.0,0.00024657,2]
[354999591,1740859844465,-500.0,0.00024657,2]
[354999592,1740859844475,-500.0,0.00024657,2]
[354999593,1740859844485,-500.0,0.00024657,2]
[354999594,1740859844495,-610.3,0.00024657,2]
[354999595,1740859844506,-500.0,0.00024657,2]
[354999596,1740859844516,-500.0,0.00024657,2]
[354999597,1740859844526,-500.0,0.00024657,2]
[354999598,1740859844536,-500.0,0.00024657,2]
[354999599,1740859844546,-1000.0,0.00024657,5]
[354999600,1740859844556,-500.0,0.00024657,2]
[354999601,1740859844567,-1501.95,0.00024657,2]
[354999602,1740859844578,-1169.78,0.00024657,2]
[354999603,1740859844589,-500.0,0.00024657,2]
[354999604,1740859844609,-338.76712693,0.00024657,2]
[354999605,1740859844623,-500.0,0.00024657,2]
[354999606,1740859844633,-500.0,0.00024657,2]
[354999607,1740859844643,-500.0,0.00024657,2]
[354999608,1740859844655,-500.0,0.00024657,2]
[354999609,1740859844666,-505.191609,0.00024657,2]
[354999610,1740859844680,-516.58,0.00024657,2]
[354999611,1740859844692,-500.0,0.00024657,2]
[354999612,1740859844702,-1160.43,0.00024657,2]
[354999613,1740859844712,-500.0,0.00024657,2]
[354999614,1740859844723,-500.0,0.00024657,2]
[354999615,1740859844732,-500.0,0.00024657,2]
[354999616,1740859844742,-500.0,0.00024657,2]
[354999617,1740859844753,-500.0,0.00024657,2]
[354999618,1740859844763,-500.0,0.00024657,2]
[354999619,1740859844774,-500.0,0.00024657,2]
[354999620,1740859844785,-668.87,0.00024657,2]
[354999621,1740859844795,-500.0,0.00024657,2]
[354999622,1740859844805,-500.0,0.00024657,2]
[354999623,1740859844816,-500.0,0.00024657,2]
[354999624,1740859844826,-500.0,0.00024657,2]
[354999625,1740859844838,-500.0,0.00024657,2]
[354999626,1740859844848,-500.0,0.00024657,2]
[354999627,1740859844858,-500.0,0.00024657,2]
[354999628,1740859844872,-500.0,0.00024657,2]
[354999629,1740859844883,-500.0,0.00024657,2]
[354999630,1740859844894,-500.0,0.00024657,2]
[354999631,1740859844904,-500.0,0.00024657,2]
[354999632,1740859844915,-500.0,0.00024657,2]
[354999633,1740859844925,-500.0,0.00024657,2]
[354999634,1740859844935,-500.0,0.00024657,2]
[354999635,1740859844944,-776.79,0.00024657,2]
[354999636,1740859844954,-500.0,0.00024657,2]
[354999637,1740859844964,-500.0,0.00024657,2]
[354999638,1740859844974,-681.09,0.00024657,2]
[354999639,1740859844983,-657.05,0.00024657,2]
[354999640,1740859844994,-500.0,0.00024657,2]
[354999641,1740859845003,-897.0,0.00024657,2]
[354999642,1740859845012,-500.0,0.00024657,2]
[354999643,1740859845022,-500.0,0.00024657,2]
[354999644,1740859845031,-500.0,0.00024657,2]
[354999645,1740859845041,-500.0,0.00024657,2]
[354999646,1740859845050,-500.0,0.00024657,2]
[354999647,1740859845059,-500.0,0.00024657,2]
[354999648,1740859845069,-500.0,0.00024657,2]
[354999649,1740859845079,-1093.55,0.00024657,2]
[354999650,1740859845088,-500.0,0.00024657,2]
[354999651,1740859845098,-500.0,0.00024657,2]
[354999652,1740859845107,-500.0,0.00024657,2]
[354999653,1740859845118,-500.0,0.00024657,2]
[354999654,1740859845127,-500.0,0.00024657,2]
[354999655,1740859845137,-500.0,0.00024657,2]
[354999656,1740859845146,-500.0,0.00024657,2]
[354999657,1740859845155,-540.6528958,0.00024657,2]
[354999658,1740859845165,-500.0,0.00024657,2]
[354999659,1740859845175,-840.8,0.00024657,2]
[354999660,1740859845185,-500.0,0.00024657,2]
[354999661,1740859845194,-500.0,0.00024657,2]
[354999662,1740859845204,-500.0,0.00024657,2]
[354999663,1740859845214,-25849.89,0.00024657,2]
[354999664,1740859845224,-1406.29,0.00024657,2]
[354999665,1740859845233,-504.6651435,0.00024657,2]
[354999666,1740859845243,-500.0,0.00024657,2]
[354999667,1740859845252,-1095.15,0.00024657,2]
[354999668,1740859845261,-500.0,0.00024657,2]
[354999669,1740859845271,-500.0,0.00024657,2]
[354999670,1740859845282,-500.0,0.00024657,2]
[354999671,1740859845291,-500.0,0.00024657,2]
[354999672,1740859845301,-1181.32,0.00024657,2]
[354999673,1740859845310,-518.40513653,0.00024657,2]
[354999674,1740859845319,-961.41,0.00024657,2]
[354999675,1740859845329,-500.0,0.00024657,2]
[354999676,1740859845338,-500.0,0.00024657,2]
[354999677,1740859845348,-768.68,0.00024657,2]
[354999678,1740859845357,-500.0,0.00024657,2]
[354999679,1740859845367,-991.81,0.00024657,2]
[354999680,1740859845377,-500.0,0.00024657,2]
[354999681,1740859845386,-500.0,0.00024657,2]
[354999682,1740859845396,-1149.39,0.00024657,2]
[354999683,1740859845405,-509.80764887,0.00024657,2]
[354999684,1740859845415,-3605.56,0.00024657,2]
[354999685,1740859845424,-510.39520217,0.00024657,2]
[354999686,1740859845433,-1898.04,0.00024657,2]
[354999687,1740859845443,-500.0,0.00024657,2]
[354999688,1740859845452,-500.0,0.00024657,2]
[354999689,1740859845461,-821.09,0.00024657,2]
[354999691,1740859845471,-607.79,0.00024657,2]
[354999692,1740859845480,-500.0,0.00024657,2]
[354999693,1740859845490,-500.0,0.00024657,2]
[354999694,1740859845499,-500.0,0.00024657,2]
[354999695,1740859845508,-500.0,0.00024657,2]
[354999696,1740859845518,-691.24,0.00024657,2]
[354999697,1740859845527,-505.41560755,0.00024657,2]
[354999698,1740859845536,-8446.45,0.00024657,2]
[354999699,1740859845546,-580.75058238,0.00024657,2]
[354999700,1740859845555,-5579.38,0.00024657,2]
[354999701,1740859845565,-500.0,0.00024657,2]
[354999702,1740859845575,-500.0,0.00024657,2]
[354999703,1740859845584,-643.86,0.00024657,2]
[354999704,1740859845597,-500.0,0.00024657,2]
[354999705,1740859845607,-1508.61,0.00024657,2]
[354999706,1740859845618,-1080.27,0.00024657,2]
[354999707,1740859845627,-500.0,0.00024657,2]
[354999708,1740859845638,-500.0,0.00024657,2]
[354999710,1740859845647,-2172.5,0.00024657,2]
[354999711,1740859845657,-533.47922802,0.00024657,2]
[354999712,1740859845667,-500.0,0.00024657,2]
[354999713,1740859845677,-500.0,0.00024657,2]
[354999714,1740859845687,-500.0,0.00024657,2]
[354999715,1740859845696,-500.0,0.00024657,2]
[354999716,1740859845705,-445.18743021,0.00024657,2]
[354999717,1740859845715,-500.0,0.00024657,2]
[354999718,1740859845724,-500.0,0.00024657,2]
[354999719,1740859845734,-500.0,0.00024657,2]
[354999720,1740859845743,-500.0,0.00024657,2]
[354999721,1740859845752,-2700.38,0.00024657,2]
[354999722,1740859845762,-500.0,0.00024657,2]
[354999723,1740859845771,-1783.07,0.00024672,2]
[354999724,1740859845782,-500.0,0.00024673,2]
[354999726,1740859845792,-500.0,0.00024673,2]
[354999727,1740859845801,-500.0,0.00024673,2]
[354999728,1740859845811,-500.0,0.00024673,2]
[354999729,1740859845820,-504.63505877,0.00024673,2]
[354999730,1740859845829,-500.0,0.00024673,2]
[354999731,1740859845839,-500.0,0.00024673,2]
[354999732,1740859845848,-500.0,0.00024673,2]
[354999733,1740859845858,-500.0,0.00024673,2]
[354999734,1740859845868,-500.0,0.00024673,2]
[354999735,1740859845878,-160.0,0.00024673,2]
[354999736,1740859845888,-500.0,0.00024673,2]
[354999737,1740859845898,-635.54991332,0.00024673,2]
[354999738,1740859845907,-500.0,0.00024673,2]
[354999739,1740859845917,-152.11819969,0.00024673,2]
[354999740,1740859845926,-500.0,0.00024673,2]
[354999741,1740859845936,-500.0,0.00024673,2]
[354999742,1740859845945,-500.0,0.00024673,2]
[354999743,1740859845955,-500.0,0.00024673,2]
[354999744,1740859845965,-500.0,0.00024673,2]
[354999745,1740859845975,-500.0,0.00024673,2]
[354999746,1740859845984,-500.0,0.00024673,2]
[354999747,1740859845993,-500.0,0.00024673,2]
[354999748,1740859846003,-219.88193823,0.00024673,2]
[354999749,1740859846012,-1783.07,0.00024692,2]
[354999750,1740859846022,-1783.07,0.00024692,2]
[354999751,1740859846031,-500.0,0.00024692,2]
[354999752,1740859846040,-251.90463725,0.00024692,2]
[354999753,1740859846050,-1783.07,0.00024693,2]
[354999754,1740859846061,-1783.07,0.00024693,2]
[354999755,1740859846071,-1783.07,0.00024693,2]
[354999756,1740859846081,-1783.07,0.00024693,2]
[354999757,1740859846091,-1783.07,0.00024693,2]
[354999758,1740859846100,-1783.07,0.00024693,2]
[354999759,1740859846110,-1783.07,0.00024693,2]
[354999760,1740859846122,-1783.07,0.00024693,2]
[354999761,1740859846132,-1783.07,0.00024693,2]
[354999762,1740859846141,-1783.07,0.00024693,2]
[354999763,1740859846225,-1783.07,0.00024693,2]
[354999764,1740859846235,-1783.07,0.00024693,2]
[354999765,1740859846245,-1783.07,0.00024693,2]
[354999766,1740859846255,-1783.2,0.00024693,2]
[354999767,1740859846264,-200.0,0.000248,2]
[354999768,1740859846273,-500.0,0.00024931,2]
[354999769,1740859846283,-303.67041697,0.00024931,2]
[354999770,1740859846292,-500.0,0.00024931,2]
[354999771,1740859846301,-1175.78,0.00024931,2]
[354999772,1740859846310,-500.0,0.00024931,2]
[354999773,1740859846320,-500.0,0.00024931,2]
[354999774,1740859846330,-500.0,0.00024931,2]
[354999775,1740859846339,-500.0,0.00024931,2]
[354999776,1740859846349,-529.07032161,0.00024931,2]
[354999777,1740859846359,-500.0,0.00024931,2]
[354999778,1740859846370,-500.0,0.00024931,2]
[354999779,1740859846380,-500.0,0.00024931,2]
[354999780,1740859846389,-500.0,0.00024931,2]
[354999781,1740859846398,-406.61527626,0.00024931,2]
[354999782,1740859846408,-882.1,0.00024931,2]
[354999783,1740859846417,-500.0,0.00024931,2]
[354999784,1740859846427,-500.0,0.00024931,2]
[354999785,1740859846436,-500.0,0.00024931,2]
[354999786,1740859846446,-500.0,0.00024931,2]
[354999787,1740859846455,-500.0,0.00024931,2]
[354999788,1740859846465,-500.0,0.00024931,2]
[354999789,1740859846474,-500.0,0.00024931,2]
[354999790,1740859846484,-335.43268638,0.00024931,2]
[354999791,1740859846493,-500.0,0.00024931,2]
[354999792,1740859846502,-500.0,0.00024931,2]
[354999793,1740859846512,-500.0,0.00024931,2]
[354999794,1740859846521,-500.0,0.00024931,2]
[354999795,1740859846531,-500.0,0.00024931,2]
[354999796,1740859846540,-500.0,0.00024931,2]
[354999797,1740859846549,-500.0,0.00024931,2]
[354999798,1740859846559,-500.0,0.00024931,2]
[354999799,1740859846568,-500.0,0.00024931,2]
[354999800,1740859846578,-500.0,0.00024931,2]
[354999801,1740859846587,-500.0,0.00024931,2]
[354999802,1740859846601,-976.68,0.00024931,2]
[354999803,1740859846610,-500.0,0.00024931,2]
[354999804,1740859846620,-500.0,0.00024931,2]
[354999805,1740859846630,-500.0,0.00024931,2]
[354999806,1740859846641,-500.0,0.00024931,2]
[354999807,1740859846650,-500.0,0.00024931,2]
[354999808,1740859846659,-510.64557622,0.00024931,2]
[354999809,1740859846669,-1000.0,0.00024931,2]
[354999810,1740859846680,-500.0,0.00024931,2]
[354999811,1740859846689,-418.56512657,0.00024931,2]
[354999812,1740859846698,-500.0,0.00024931,2]
[354999813,1740859846708,-623.76,0.00024931,2]
[354999814,1740859846717,-500.0,0.00024931,2]
[354999815,1740859846726,-500.0,0.00024931,2]
[354999816,1740859846735,-500.0,0.00024931,2]
[354999817,1740859846745,-500.0,0.00024931,2]
[354999818,1740859846754,-500.0,0.00024931,2]
[354999819,1740859846763,-500.0,0.00024931,2]
[354999820,1740859846773,-500.0,0.00024931,2]
[354999821,1740859846782,-500.0,0.00024931,2]
[354999822,1740859846791,-500.0,0.00024931,2]
[354999823,1740859846800,-500.0,0.00024931,2]
[354999824,1740859846809,-500.0,0.00024931,2]
[354999825,1740859846819,-502.81663997,0.00024931,2]
[354999826,1740859846828,-500.0,0.00024931,2]
[354999827,1740859846837,-500.0,0.00024931,2]
[354999828,1740859846847,-500.0,0.00024931,2]
[354999829,1740859846855,-500.0,0.00024931,2]
[354999830,1740859846866,-500.0,0.00024931,2]
[354999831,1740859846875,-500.0,0.00024931,2]
[354999832,1740859846884,-500.0,0.00024931,2]
[354999833,1740859846894,-500.0,0.00024931,2]
[354999834,1740859846903,-581.11,0.00024931,2]
[354999835,1740859846912,-500.0,0.00024931,2]
[354999836,1740859846921,-500.0,0.00024931,2]
[354999837,1740859846930,-500.0,0.00024931,2]
[354999838,1740859846939,-500.0,0.00024931,2]
[354999839,1740859846948,-500.0,0.00024931,2]
[354999840,1740859846957,-500.0,0.00024931,2]
[354999841,1740859846967,-751.3,0.00024931,2]
[354999842,1740859846976,-500.0,0.00024931,2]
[354999843,1740859846985,-500.0,0.00024931,2]
[354999844,1740859846995,-763.45,0.00024931,2]
[354999845,1740859847004,-654.27,0.00024931,2]
[354999846,1740859847013,-500.0,0.00024931,2]
[354999847,1740859847022,-500.0,0.00024931,2]
[354999848,1740859847031,-500.0,0.00024931,2]
[354999849,1740859847040,-500.0,0.00024931,2]
[354999850,1740859847049,-500.0,0.00024931,2]
[354999851,1740859847058,-559.65960212,0.00024931,2]
[354999852,1740859847068,-530.82,0.00024931,2]
[354999853,1740859847077,-596.27,0.00024931,2]
[354999854,1740859847086,-500.0,0.00024931,2]
[354999855,1740859847096,-500.0,0.00024931,2]
[354999856,1740859847105,-500.0,0.00024931,2]
[354999857,1740859847115,-500.0,0.00024931,2]
[354999858,1740859847124,-513.88348399,0.00024931,2]
[354999859,1740859847134,-500.0,0.00024931,2]
[354999860,1740859847143,-500.0,0.00024931,2]
[354999861,1740859847152,-500.0,0.00024931,2]
[354999862,1740859847161,-500.0,0.00024931,2]
[354999863,1740859847171,-236.59,0.00024931,2]
[354999864,1740859847181,-595.8,0.00024931,2]
[354999865,1740859847191,-515.24679205,0.00024931,2]
[354999866,1740859847200,-500.0,0.00024931,2]
[354999867,1740859847209,-500.0,0.00024931,2]
[354999868,1740859847219,-500.0,0.00024931,2]
[354999869,1740859847229,-500.0,0.00024931,2]
[354999870,1740859847238,-500.0,0.00024931,2]
[354999871,1740859847247,-500.0,0.00024931,2]
[354999872,1740859847257,-500.0,0.00024931,2]
[354999873,1740859847266,-2122.45,0.00024931,2]
[354999874,1740859847275,-924.91,0.00024931,2]
[354999875,1740859847285,-500.0,0.00024931,2]
[354999876,1740859847294,-500.0,0.00024931,2]
[354999877,1740859847303,-500.0,0.00024931,2]
[354999878,1740859847313,-1209.49,0.00024931,2]
[354999879,1740859847322,-500.0,0.00024931,2]
[354999880,1740859847332,-500.0,0.00024931,2]
[354999881,1740859847341,-437.48787654,0.00024931,2]
[354999882,1740859847350,-500.0,0.00024931,2]
[354999883,1740859847360,-500.0,0.00024931,2]
[354999884,1740859847371,-500.0,0.00024931,2]
[354999885,1740859847380,-1416.22,0.00024931,2]
[354999886,1740859847391,-500.0,0.00024931,2]
[354999887,1740859847400,-500.0,0.00024931,2]
[354999888,1740859847410,-500.0,0.00024931,2]
[354999889,1740859847420,-558.99,0.00024931,2]
[354999890,1740859847429,-500.0,0.00024931,2]
[354999891,1740859847438,-500.0,0.00024931,2]
[354999892,1740859847448,-1585.23,0.00024931,2]
[354999893,1740859847457,-741.54,0.00024931,2]
[354999894,1740859847467,-500.0,0.00024931,2]
[354999895,1740859847476,-500.0,0.00024931,2]
[354999896,1740859847486,-500.0,0.00024931,2]
[354999897,1740859847495,-500.0,0.00024931,2]
[354999898,1740859847505,-1301.37,0.00024931,2]
[354999899,1740859847514,-500.0,0.00024931,2]
[354999900,1740859847524,-500.0,0.00024931,2]
[354999901,1740859847533,-500.0,0.00024931,2]
[354999902,1740859847542,-500.0,0.00024931,2]
[354999903,1740859847552,-200.0,0.00024931,2]
[354999904,1740859847561,-500.0,0.00024931,2]
[354999905,1740859847570,-500.0,0.00024931,2]
[354999906,1740859847579,-881.3,0.00024931,2]
[354999907,1740859847589,-598.06,0.00024931,2]
[354999908,1740859847604,-500.0,0.00024931,2]
[354999909,1740859847613,-500.0,0.00024931,2]
[354999910,1740859847622,-500.0,0.00024931,2]
[354999911,1740859847631,-500.0,0.00024931,2]
[354999912,1740859847642,-500.0,0.00024931,2]
[354999913,1740859847652,-500.0,0.00024931,2]
[354999914,1740859847661,-500.0,0.00024931,2]
[354999915,1740859847670,-500.0,0.00024931,2]
[354999916,1740859847680,-500.0,0.00024931,2]
[354999917,1740859847689,-500.0,0.00024931,2]
[354999918,1740859847699,-500.0,0.00024931,2]
[354999919,1740859847708,-500.0,0.00024931,2]
[354999920,1740859847718,-753.74,0.00024931,2]
[354999921,1740859847727,-500.0,0.00024931,2]
[354999922,1740859847737,-894.63,0.00024931,2]
[354999923,1740859847747,-500.0,0.00024931,2]
[354999924,1740859847756,-500.0,0.00024931,2]
[354999925,1740859847765,-213.69101172,0.00024931,2]
[354999926,1740859847775,-500.0,0.00024931,2]
[354999927,1740859847784,-500.0,0.00024931,2]
[354999928,1740859847793,-500.0,0.00024931,2]
[354999929,1740859847803,-1145.0,0.00024931,2]
[354999930,1740859847812,-913.25,0.00024931,2]
[354999931,1740859847821,-987.26,0.00024931,2]
[354999932,1740859847830,-1987.88,0.00024931,2]
[354999933,1740859847839,-500.0,0.00024931,2]
[354999934,1740859847848,-500.0,0.00024931,2]
[354999935,1740859847858,-500.0,0.00024931,2]
[354999936,1740859847868,-881.13,0.00024931,2]
[354999937,1740859847877,-500.0,0.00024931,2]
[354999938,1740859847887,-500.0,0.00024931,2]
[354999939,1740859847896,-500.0,0.00024931,2]
[354999940,1740859847906,-827.78,0.00024931,2]
[354999941,1740859847915,-500.0,0.00024931,2]
[354999942,1740859847925,-500.0,0.00024931,2]
[354999943,1740859847935,-500.0,0.00024931,2]
[354999944,1740859847944,-669.77,0.00024931,2]
[354999945,1740859847953,-716.51,0.00024931,2]
[354999946,1740859847962,-500.0,0.00024931,2]
[354999947,1740859847971,-500.0,0.00024931,2]
[354999948,1740859847981,-669.54,0.00024931,2]
[354999949,1740859847991,-876.64,0.00024931,2]
[354999950,1740859848000,-830.41,0.00024931,2]
[354999951,1740859848009,-1422.33,0.00024931,2]
[354999952,1740859848019,-1006.8,0.00024931,2]
[354999953,1740859848028,-500.0,0.00024931,2]
[354999954,1740859848038,-500.0,0.00024931,2]
[354999955,1740859848048,-221.42438152,0.00024931,2]
[354999956,1740859848058,-534.55,0.00024931,2]
[354999957,1740859848068,-500.0,0.00024931,2]
[354999958,1740859848077,-500.0,0.00024931,2]
[354999959,1740859848086,-500.0,0.00024931,2]
[354999960,1740859848096,-500.0,0.00024931,2]
[354999961,1740859848105,-500.0,0.00024931,2]
[354999962,1740859848115,-834.3,0.00024931,2]
[354999963,1740859848125,-386.79695689,0.00024931,2]
[354999964,1740859848135,-500.0,0.00024931,2]
[354999965,1740859848145,-1161.85,0.00024931,2]
[354999966,1740859848155,-1058.6,0.00024931,2]
[354999967,1740859848164,-500.0,0.00024931,2]
[354999968,1740859848174,-500.0,0.00024931,2]
[354999969,1740859848184,-500.0,0.00024931,2]
[354999970,1740859848194,-500.0,0.00024931,2]
[354999971,1740859848204,-500.0,0.00024931,2]
[354999972,1740859848214,-500.0,0.00024931,2]
[354999973,1740859848223,-500.0,0.00024931,2]
[354999974,1740859848233,-500.0,0.00024931,2]
[354999975,1740859848243,-500.0,0.00024931,2]
[354999976,1740859848252,-514.78,0.00024931,2]
[354999977,1740859848262,-500.0,0.00024931,2]
[354999978,1740859848272,-500.0,0.00024931,2]
[354999979,1740859848281,-500.0,0.00024931,2]
[354999980,1740859848291,-1233.33,0.00024931,2]
[354999981,1740859848300,-3754.72,0.00024931,2]
[354999982,1740859848312,-500.0,0.00024931,2]
[354999983,1740859848322,-500.0,0.00024931,2]
[354999984,1740859848332,-1949.55,0.00024931,2]
[354999985,1740859848342,-500.0,0.00024931,2]
[354999986,1740859848351,-500.0,0.00024931,2]
[354999987,1740859848361,-500.0,0.00024931,2]
[354999988,1740859848370,-500.0,0.00024931,2]
[354999989,1740859848380,-500.0,0.00024931,2]
[354999990,1740859848390,-500.0,0.00024931,2]
[354999991,1740859848400,-1068.89,0.00024931,2]
[354999992,1740859848410,-500.0,0.00024931,2]
[354999993,1740859848420,-500.0,0.00024931,2]
[354999994,1740859848429,-520.44539865,0.00024931,2]
[354999995,1740859848438,-1512.73,0.00024931,2]
[354999996,1740859848451,-500.0,0.00024931,2]
[354999997,1740859848460,-839.73,0.00024931,2]
[354999998,1740859848470,-500.0,0.00024931,2]
[354999999,1740859848480,-500.0,0.00024931,2]
[355000000,1740859848490,-531.81330631,0.00024931,2]
[355000001,1740859848500,-500.0,0.00024931,2]
[355000002,1740859848509,-500.0,0.00024931,2]
[355000003,1740859848519,-500.0,0.00024931,2]
[355000004,1740859848529,-500.0,0.00024931,2]
[355000005,1740859848539,-500.0,0.00024931,2]
[355000006,1740859848549,-500.0,0.00024931,2]
[355000007,1740859848558,-500.0,0.00024931,2]
[355000008,1740859848567,-503.43214631,0.00024931,2]
[355000009,1740859848577,-739.94,0.00024931,2]
[355000010,1740859848587,-626.2,0.00024931,2]
[355000011,1740859848600,-500.0,0.00024931,2]
[355000012,1740859848610,-500.0,0.00024931,2]
[355000013,1740859848620,-841.83,0.00024931,2]
[355000014,1740859848630,-730.14,0.00024931,2]
[355000015,1740859848643,-500.0,0.00024931,2]
[355000016,1740859848652,-318.20195733,0.00024931,2]
[355000017,1740859848662,-500.0,0.00024931,2]
[355000018,1740859848676,-500.0,0.00024931,2]
[355000019,1740859848689,-500.0,0.00024931,2]
[355000020,1740859848698,-666.8,0.00024931,2]
[355000021,1740859848708,-500.0,0.00024931,2]
[355000022,1740859848717,-500.0,0.00024931,2]
[355000023,1740859848726,-500.0,0.00024931,2]
[355000024,1740859848735,-500.0,0.00024931,2]
[355000025,1740859848745,-500.0,0.00024931,2]
[355000026,1740859848754,-500.0,0.00024931,2]
[355000027,1740859848764,-465.09879771,0.00024931,2]
[355000028,1740859848773,-500.0,0.00024931,2]
[355000029,1740859848782,-500.0,0.00024931,2]
[355000030,1740859848792,-500.0,0.00024931,2]
[355000031,1740859848801,-500.0,0.00024931,2]
[355000032,1740859848811,-500.0,0.00024931,2]
[355000033,1740859848821,-633.98,0.00024931,2]
[355000034,1740859848830,-513.64183561,0.00024931,2]
[355000035,1740859848839,-12722.24,0.00024931,2]
[355000036,1740859848848,-500.0,0.00024931,2]
[355000037,1740859848858,-665.93,0.00024931,2]
[355000038,1740859848867,-500.0,0.00024931,2]
[355000039,1740859848877,-500.0,0.00024931,2]
[355000040,1740859848886,-5610.86,0.00024931,2]
[355000041,1740859848896,-594.88,0.00024931,2]
[355000042,1740859848905,-500.0,0.00024931,2]
[355000043,1740859848915,-500.0,0.00024931,2]
[355000044,1740859848925,-870.25,0.00024931,2]
[355000045,1740859848935,-500.0,0.00024931,2]
[355000046,1740859848944,-500.0,0.00024931,2]
[355000047,1740859848954,-1453.71,0.00024931,2]
[355000048,1740859848964,-500.0,0.00024931,2]
[355000049,1740859848974,-500.0,0.00024931,2]
[355000050,1740859848984,-4285.78,0.00024931,2]
[355000051,1740859848993,-500.0,0.00024931,2]
[355000052,1740859849003,-500.0,0.00024931,2]
[355000053,1740859849013,-500.0,0.00024931,2]
[355000054,1740859849022,-1095.21,0.00024931,2]
[355000055,1740859849032,-500.0,0.00024931,2]
[355000056,1740859849041,-887.71,0.00024931,2]
[355000057,1740859849051,-613.22,0.00024931,2]
[355000058,1740859849060,-500.0,0.00024931,2]
[355000059,1740859849070,-500.0,0.00024931,2]
[355000060,1740859849079,-500.0,0.00024931,2]
[355000061,1740859849089,-500.0,0.00024931,2]
[355000062,1740859849099,-2768.47,0.00024931,2]
[355000063,1740859849109,-500.0,0.00024931,2]
[355000064,1740859849119,-590.1,0.00024931,2]
[355000065,1740859849129,-547.59,0.00024931,2]
[355000066,1740859849140,-500.0,0.00024931,2]
[355000067,1740859849150,-500.0,0.00024931,2]
[355000068,1740859849160,-500.0,0.00024931,2]
[355000069,1740859849170,-4243.73,0.00024931,2]
[355000070,1740859849180,-500.0,0.00024931,2]
[355000071,1740859849190,-500.0,0.00024931,2]
[355000072,1740859849199,-500.0,0.00024931,2]
[355000073,1740859849209,-1430.49,0.00024931,2]
[355000074,1740859849219,-500.0,0.00024931,2]
[355000075,1740859849229,-14228.71,0.00024931,2]
[355000076,1740859849239,-500.0,0.00024931,2]
[355000077,1740859849249,-517.4246082,0.00024931,2]
[355000078,1740859849259,-7666.46,0.00024931,2]
[355000079,1740859849268,-500.0,0.00024931,2]
[355000080,1740859849277,-500.0,0.00024931,2]
[355000081,1740859849287,-978.37,0.00024931,2]
[355000082,1740859849297,-500.0,0.00024931,2]
[355000083,1740859849306,-500.0,0.00024931,2]
[355000084,1740859849315,-1340.88,0.00024931,2]
[355000085,1740859849326,-500.0,0.00024931,2]
[355000086,1740859849337,-500.0,0.00024931,2]
[355000087,1740859849347,-151342.81,0.00024931,2]
[355000088,1740859849358,-500.0,0.00024931,2]
[355000089,1740859849368,-500.0,0.00024931,2]